[Event "Czech Youth U14 Girls 2024"]
[Site "Kouty nad Desnou"]
[Date "2024.03.14"]
[Round "7.1"]
[White "Slivova, Linda"]
[Black "Horkova, Tereza"]
[Result "1/2-1/2"]
[ECO "D02"]
[WhiteElo "1824"]
[BlackElo "1845"]
[Annotator "NA RC"]
[PlyCount "111"]
[EventDate "2024.03.10"]
[EventType "swiss"]
[EventCountry "CZE"]
[SourceTitle "playchess.com"]
[Source "ChessBase"]
[SourceQuality "1"]
[TimeControl "40/5400+30:1800+30"]

1. d4 {[%emt 0:00:04]} d5 {[%emt 0:00:07]} 2. Bf4 {[%emt 0:00:10]} Nf6 {[%emt 0:00:31]} 3. Nf3 {[%emt 0:00:09]} e6 {[%emt 0:00:53]} 4. e3 {[%emt 0:00:29]} c5 {[%emt 0:00:48]} 5. c3 {[%emt 0:00:40]} Be7 {[%emt 0:03:01]} 6. Nbd2 {[%emt 0:01:27]} O-O {[%emt 0:00:13] D02: Damenbauernspiele.} 7. Bd3 {[%emt 0:00:42]} b6 {[%emt 0:01:35]} 8. Ne5 {[%emt 0:02:53]} Bb7 {[%emt 0:01:22]} 9. Qf3 {[%emt 0:04:28]} Nbd7 {[%emt 0:04:53]} 10. Qh3 {[%emt 0:06:36]} g6 {[%emt 0:04:34]} 11. Ndf3 {[%emt 0:22:41]} c4 {[%emt 0:05:57]} 12. Bc2 {[%emt 0:00:46]} Nxe5 {[%emt 0:04:32]} 13. Nxe5 {[%emt 0:10:29]} b5 {[%emt 0:04:49]} (13... Nd7 $14 {might be stronger.}) 14. Qf3 {[%emt 0:15:49]} Kg7 {[%emt 0:05:39]} 15. Ng4 {[%emt 0:10:51]} Nxg4 {[%emt 0:01:34]} 16. Qxg4 {[%emt 0:00:25]} b4 {[%emt 0:05:27]} 17. Qe2 {[%emt 0:03:26]} Bd6 {[%emt 0:03:25]} 18. Bxd6 {[%emt 0:01:02]} Qxd6 {[%emt 0:00:02]} 19. O-O {[%emt 0:01:49]} bxc3 {[%emt 0:00:49]} 20. bxc3 {[%emt 0:00:09]} Qa3 {[%emt 0:00:55]} 21. Qd2 {[%emt 0:04:32]} Rab8 {[%emt 0:02:11]} 22. Rfb1 {[%emt 0:03:08]} Bc6 {[%emt 0:00:47]} 23. Bd1 {[%emt 0:01:16]} Rb6 {[%emt 0:07:06]} 24. Rxb6 {[%emt 0:02:02]} axb6 {[%emt 0:00:01]} 25. Rb1 {[%emt 0:00:41]} Ra8 {[%emt 0:04:00]} 26. Rxb6 {[%emt 0:02:21]} Qxa2 {[%emt 0:00:18]} 27. Qxa2 {[%emt 0:00:38]} Rxa2 {[%emt 0:00:02]} 28. Rb1 {[%emt 0:00:49]} Ba4 {[%emt 0:01:13]} 29. Bxa4 {[%emt 0:00:26]} Rxa4 {[%emt 0:00:02]} 30. g3 {[%emt 0:02:54]} Kf6 {[%emt 0:00:14]} 31. Kg2 {[%emt 0:00:31]} Kf5 {[%emt 0:00:41]} 32. Kf3 {[%emt 0:00:16]} h5 {[%emt 0:02:30]} 33. h3 {[%emt 0:01:43]} Ra3 {[%emt 0:00:45]} 34. Rc1 {[%emt 0:00:29]} g5 {[%emt 0:01:42]} 35. g4+ {[%emt 0:00:21]} hxg4+ {[%emt 0:00:36]} 36. hxg4+ {[%emt 0:00:02]} Kg6 {[%emt 0:02:04]} 37. Rc2 {[%emt 0:00:46]} f5 {[%emt 0:02:33]} 38. Kg3 {[%emt 0:00:47]} Kf6 {[%emt 0:00:20]} 39. f3 {[%emt 0:00:29]} Ke7 {[%emt 0:02:48]} 40. Kg2 {[%emt 0:00:35]} Kd6 {[%emt 0:00:41]} (40... fxg4 $17 41. fxg4 e5) 41. gxf5 {[%emt 0:15:28]} (41. Kh3 $11) 41... exf5 {[%emt 0:00:02]} 42. Kf2 {[%emt 0:02:39]} Kc6 {[%emt 0:01:15]} 43. Ke2 {[%emt 0:00:44]} Kb5 {[%emt 0:01:55]} 44. e4 {[%emt 0:03:03]} fxe4 {[%emt 0:01:44]} 45. fxe4 {[%emt 0:00:06]} dxe4 {[%emt 0:00:33]} 46. Ke3 {[%emt 0:00:12]} Ka4 {[%emt 0:00:41]} 47. Kxe4 {[%emt 0:00:55]} Kb3 {[%emt 0:00:35]} 48. Rg2 {[%emt 0:01:09]} Kxc3 {[%emt 0:00:37]} 49. Rxg5 {[%emt 0:00:36]} Kb2 $11 {[%emt 0:02:51]} 50. Rc5 {[%emt 0:04:02]} c3 {[%emt 0:06:09]} 51. Kd3 {[%emt 0:00:53]} c2+ {[%emt 0:00:51]} 52. Kd2 {[%emt 0:00:29]} c1=Q+ {[%emt 0:01:20]} 53. Rxc1 {[%emt 0:00:11]} Ra4 {[%emt 0:00:04]} 54. Rc2+ {[%emt 0:00:49]} Kb1 {[%emt 0:00:27]} 55. Rc1+ {[%emt 0:00:09]} Kb2 {[%emt 0:00:07]} 56. Rc2+ {[%emt 0:00:04]} 1/2-1/2

[Event "Czech Youth U14 Girls 2024"]
[Site "Kouty nad Desnou"]
[Date "2024.03.14"]
[Round "7.2"]
[White "Bartova, Hana"]
[Black "Kammova, Katerina"]
[Result "0-1"]
[ECO "C54"]
[WhiteElo "1667"]
[BlackElo "1781"]
[Annotator "NA RC"]
[PlyCount "80"]
[EventDate "2024.03.10"]
[EventType "swiss"]
[EventCountry "CZE"]
[SourceTitle "playchess.com"]
[Source "ChessBase"]
[SourceQuality "1"]
[TimeControl "40/5400+30:1800+30"]

1. e4 {[%emt 0:00:10]} e5 {[%emt 0:00:12]} 2. Nf3 {[%emt 0:01:13]} Nc6 {[%emt 0:01:01]} 3. Bc4 {[%emt 0:00:23]} Bc5 {[%emt 0:00:51]} 4. c3 {[%emt 0:04:56]} Nf6 {[%emt 0:02:30]} 5. d4 {[%emt 0:00:16]} exd4 {[%emt 0:03:06]} 6. cxd4 {[%emt 0:00:24]} Bb4+ {[%emt 0:01:24]} 7. Bd2 {[%emt 0:01:17]} Bxd2+ {[%emt 0:04:37]} 8. Nbxd2 {[%emt 0:00:50]} d6 {[%emt 0:09:54]} 9. O-O {[%emt 0:05:32]} O-O {[%emt 0:00:47]} 10. a3 {[%emt 0:04:49]} d5 {[%emt 0:06:38]} 11. exd5 {[%emt 0:13:49]} Nxd5 {[%emt 0:00:26]} 12. Nb3 {[%emt 0:02:52]} Bf5 {[%emt 0:05:56]} 13. Ne5 {[%emt 0:07:39]} Nce7 {[%emt 0:05:58]} 14. Re1 {[%emt 0:13:03]} h6 {[%emt 0:06:46]} 15. Nc5 {[%emt 0:16:25]} Rb8 {[%emt 0:23:16]} 16. g4 {[%emt 0:03:25]} Bc8 {[%emt 0:00:39]} 17. Qf3 {[%emt 0:10:03]} c6 {[%emt 0:02:34]} 18. Ne4 {[%emt 0:03:59]} Ng6 {[%emt 0:07:09]} 19. Nc3 {[%emt 0:04:22]} Nxe5 {[%emt 0:07:49]} 20. dxe5 {[%emt 0:03:30]} Nxc3 {[%emt 0:02:39]} 21. bxc3 {[%emt 0:00:01]} Qh4 {[%emt 0:02:05]} 22. h3 {[%emt 0:01:11]} h5 {[%emt 0:00:45]} 23. Re4 {[%emt 0:00:58]} hxg4 {[%emt 0:01:03]} 24. hxg4 {[%emt 0:00:06]} Be6 {[%emt 0:00:42]} 25. Kg2 {[%emt 0:00:33]} Bxc4 {[%emt 0:01:41]} 26. Rxc4 {[%emt 0:00:02]} f5 {[%emt 0:00:58]} 27. Rh1 {[%emt 0:01:24]} Qe7 {[%emt 0:01:38]} 28. Rf4 {[%emt 0:00:42]} fxg4 {[%emt 0:00:40]} 29. Qxg4 {[%emt 0:00:05]} Qxe5 {[%emt 0:00:13]} 30. Re4 {[%emt 0:00:48]} Qf5 {[%emt 0:00:46]} 31. Qe2 {[%emt 0:00:32]} Qg5+ {[%emt 0:00:40]} 32. Rg4 {[%emt 0:00:18]} Qd5+ {[%emt 0:00:12]} 33. Kg1 {[%emt 0:00:20]} Rbe8 {[%emt 0:00:27]} 34. Rxg7+ {[%emt 0:00:43]} Kxg7 {[%emt 0:00:11]} 35. Qg4+ {[%emt 0:00:03]} Kf6 {[%emt 0:00:52]} 36. Qf4+ {[%emt 0:00:55]} Ke7 {[%emt 0:00:20]} 37. Qc7+ {[%emt 0:00:08]} Ke6 {[%emt 0:00:19]} 38. Rh6+ {[%emt 0:00:45]} Rf6 {[%emt 0:00:09]} 39. Rxf6+ {[%emt 0:00:47]} Kxf6 {[%emt 0:00:05]} 40. Qf4+ {[%emt 0:00:06]} Kg6 {[%emt 0:00:23]} 0-1

[Event "Czech Youth U14 Girls 2024"]
[Site "Kouty nad Desnou"]
[Date "2024.03.14"]
[Round "7.3"]
[White "Kozusnikova, Daniela"]
[Black "Nova, Doubravka Anezka"]
[Result "1-0"]
[ECO "C43"]
[WhiteElo "1809"]
[BlackElo "1718"]
[Annotator "NA RC"]
[PlyCount "95"]
[EventDate "2024.03.10"]
[EventType "swiss"]
[EventCountry "CZE"]
[SourceTitle "playchess.com"]
[Source "ChessBase"]
[SourceQuality "1"]
[TimeControl "40/5400+30:1800+30"]

1. e4 {[%emt 0:00:05]} e5 {[%emt 0:00:05]} 2. Nf3 {[%emt 0:00:06]} Nf6 {[%emt 0:00:06]} 3. d4 {[%emt 0:00:07]} Nxe4 {[%emt 0:00:07]} 4. Bd3 {[%emt 0:00:07]} d5 {[%emt 0:00:09]} 5. Nxe5 {[%emt 0:00:08]} Nd7 {[%emt 0:00:09]} 6. Nxd7 {[%emt 0:00:09]} Bxd7 {[%emt 0:00:05]} 7. O-O {[%emt 0:00:46]} Bd6 {[%emt 0:00:17]} 8. Nc3 {[%emt 0:08:30]} Nxc3 {[%emt 0:02:58]} 9. bxc3 {[%emt 0:00:06]} O-O {[%emt 0:10:32]} 10. Qh5 {[%emt 0:03:57]} g6 {[%emt 0:04:31]} 11. Qxd5 {[%emt 0:08:08]} Bc6 {[%emt 0:04:10] C43: Petroff Defence: 3 d4.} 12. Qg5 {[%emt 0:03:30]} Be7 {[%emt 0:04:33]} 13. Qg4 {[%emt 0:05:39]} h5 {[%emt 0:07:54]} 14. Qg3 {[%emt 0:15:01]} Bd6 {[%emt 0:10:02]} 15. Bf4 {[%emt 0:03:37]} Bxf4 {[%emt 0:02:31]} 16. Qxf4 {[%emt 0:00:11]} Qd5 {[%emt 0:02:08]} 17. f3 {[%emt 0:02:34]} Qa5 {[%emt 0:05:24]} 18. c4 {[%emt 0:05:48]} Rad8 {[%emt 0:03:00]} 19. d5 {[%emt 0:04:41]} Qc5+ {[%emt 0:01:17]} 20. Kh1 {[%emt 0:00:24]} Bd7 {[%emt 0:03:18]} 21. Rab1 {[%emt 0:06:38]} Bc8 {[%emt 0:02:44]} 22. Rb5 {[%emt 0:07:18]} Qd6 {[%emt 0:06:01]} 23. Qxd6 {[%emt 0:02:15]} Rxd6 {[%emt 0:00:59]} 24. Be4 {[%emt 0:06:57]} f5 {[%emt 0:07:12]} 25. Bd3 {[%emt 0:03:47]} a6 {[%emt 0:04:03]} 26. Rbb1 {[%emt 0:02:25]} b6 {[%emt 0:01:55]} 27. Rfe1 {[%emt 0:03:04]} Kf7 {[%emt 0:01:34]} 28. f4 {[%emt 0:02:29]} a5 {[%emt 0:02:15]} 29. c5 {[%emt 0:03:06]} bxc5 {[%emt 0:01:40]} 30. Rb5 {[%emt 0:00:38]} Ba6 {[%emt 0:03:07]} 31. Rxc5 {[%emt 0:00:11]} Bxd3 {[%emt 0:01:12]} 32. Rxc7+ {[%emt 0:00:07]} Kf6 {[%emt 0:00:40]} 33. cxd3 {[%emt 0:00:17]} Rxd5 {[%emt 0:00:37]} 34. Rc3 {[%emt 0:02:51]} Rfd8 {[%emt 0:00:29]} 35. Rd1 {[%emt 0:00:15]} Rd4 {[%emt 0:01:44]} 36. g3 {[%emt 0:00:16]} R8d6 {[%emt 0:02:34]} 37. Kg2 {[%emt 0:00:43]} Ke6 {[%emt 0:03:27]} 38. Kf3 {[%emt 0:00:56]} Kf6 {[%emt 0:00:23]} 39. Ke3 {[%emt 0:00:26]} Ke6 {[%emt 0:00:57]} 40. Rd2 {[%emt 0:00:37]} Kf6 {[%emt 0:01:31]} 41. Rc4 {[%emt 0:31:24]} R4d5 {[%emt 0:32:04]} 42. d4 {[%emt 0:00:00]} Ke7 {[%emt 0:00:00]} 43. Rc5 {[%emt 0:00:00]} Kd7 {[%emt 0:00:00]} 44. Rxd5 {[%emt 0:00:00]} Rxd5 $18 {[%emt 0:00:00]} 45. Kd3 {[%emt 0:00:00]} Kd6 {[%emt 0:00:00]} 46. Kc4 {[%emt 0:00:00]} Kc6 {[%emt 0:00:00]} 47. a4 {[%emt 0:00:00]} Kd6 {[%emt 0:00:00]} 48. Re2 {[%emt 0:00:00]} 1-0

[Event "Czech Youth U14 Girls 2024"]
[Site "Kouty nad Desnou"]
[Date "2024.03.14"]
[Round "7.4"]
[White "Barteckova, Valerie"]
[Black "Barteckova, Nikol"]
[Result "0-1"]
[ECO "A46"]
[WhiteElo "1687"]
[BlackElo "1612"]
[Annotator "NA RC"]
[PlyCount "68"]
[EventDate "2024.03.10"]
[EventType "swiss"]
[EventCountry "CZE"]
[SourceTitle "playchess.com"]
[Source "ChessBase"]
[SourceQuality "1"]
[TimeControl "40/5400+30:1800+30"]

1. d4 {[%emt 0:00:31]} Nf6 {[%emt 0:00:22]} 2. Nf3 {[%emt 0:00:11]} c5 {[%emt 0:00:15]} 3. e3 {[%emt 0:00:13]} d5 {[%emt 0:01:33]} 4. c3 {[%emt 0:04:28]} Nc6 {[%emt 0:04:20]} 5. Bd3 {[%emt 0:06:54]} e6 {[%emt 0:04:24]} 6. Nbd2 {[%emt 0:00:48]} a6 {[%emt 0:03:38]} 7. O-O {[%emt 0:07:57]} Bd6 {[%emt 0:07:54]} 8. Qe2 {[%emt 0:05:41]} O-O {[%emt 0:04:13]} 9. dxc5 {[%emt 0:02:16]} Bxc5 {[%emt 0:01:34]} 10. e4 {[%emt 0:01:29]} e5 {[%emt 0:12:55]} 11. Nb3 {[%emt 0:07:22]} Ba7 {[%emt 0:01:11]} 12. Bg5 {[%emt 0:06:38]} dxe4 {[%emt 0:05:48]} 13. Bxe4 {[%emt 0:00:18]} Re8 {[%emt 0:03:49]} 14. Rad1 {[%emt 0:00:37]} Qe7 {[%emt 0:00:25]} 15. h3 {[%emt 0:01:08]} Bd7 {[%emt 0:04:36]} 16. Rfe1 {[%emt 0:00:29]} Rad8 {[%emt 0:03:51]} 17. Bxc6 {[%emt 0:01:10]} Bxc6 {[%emt 0:01:30]} 18. Rxd8 {[%emt 0:00:45]} Rxd8 {[%emt 0:00:29]} 19. Qxe5 {[%emt 0:01:21]} Qxe5 {[%emt 0:00:24]} 20. Rxe5 {[%emt 0:00:04]} Rd1+ {[%emt 0:00:58]} 21. Kh2 {[%emt 0:00:43]} Bb8 {[%emt 0:01:28]} 22. Bxf6 {[%emt 0:00:02]} gxf6 {[%emt 0:00:28]} 23. Nbd4 {[%emt 0:00:03]} fxe5 {[%emt 0:00:19]} 24. Nxc6 {[%emt 0:00:01]} bxc6 {[%emt 0:00:30]} 25. Nxe5 {[%emt 0:00:01]} Bxe5+ 26. f4 Bxf4+ {[%emt 0:00:35]} 27. g3 {[%emt 0:00:02]} Rd2+ {[%emt 0:00:09]} 28. Kh1 {[%emt 0:00:17]} Bxg3 {[%emt 0:00:13]} 29. h4 {[%emt 0:00:02]} f5 {[%emt 0:00:07]} 30. h5 {[%emt 0:00:11]} f4 {[%emt 0:00:05]} 31. h6 {[%emt 0:00:06]} f3 {[%emt 0:00:03]} 32. c4 {[%emt 0:00:17]} f2 {[%emt 0:00:10]} 33. Kg2 {[%emt 0:00:12]} Bh4 {[%emt 0:00:21]} 34. Kh1 {[%emt 0:00:01]} f1=Q# {[%emt 0:00:13]} 0-1

[Event "Czech Youth U14 Girls 2024"]
[Site "Kouty nad Desnou"]
[Date "2024.03.14"]
[Round "7.5"]
[White "Kubatova, Beta"]
[Black "Nguyen Nhat, Minh Thu"]
[Result "1-0"]
[ECO "D55"]
[WhiteElo "1666"]
[BlackElo "1563"]
[Annotator "NA RC"]
[PlyCount "139"]
[EventDate "2024.03.10"]
[EventType "swiss"]
[EventCountry "CZE"]
[SourceTitle "playchess.com"]
[Source "ChessBase"]
[SourceQuality "1"]
[TimeControl "40/5400+30:1800+30"]

1. d4 {[%emt 0:00:05]} d5 {[%emt 0:00:23]} 2. c4 {[%emt 0:00:12]} e6 {[%emt 0:00:08]} 3. Nc3 {[%emt 0:00:21]} Nf6 {[%emt 0:01:01]} 4. Bg5 {[%emt 0:00:37]} Be7 {[%emt 0:03:13]} 5. e3 {[%emt 0:02:01]} O-O {[%emt 0:05:45]} 6. Nf3 {[%emt 0:02:30]} c6 {[%emt 0:08:37]} 7. Bd3 {[%emt 0:05:53]} Nbd7 {[%emt 0:04:07]} 8. O-O {[%emt 0:01:57]} b6 {[%emt 0:03:19]} 9. Qe2 {[%emt 0:05:06]} Bb7 {[%emt 0:07:55]} 10. Rfd1 {[%emt 0:02:59]} c5 {[%emt 0:14:08]} 11. Rac1 {[%emt 0:08:51]} dxc4 {[%emt 0:07:17]} 12. Bxc4 {[%emt 0:00:26]} cxd4 {[%emt 0:26:16]} 13. Nxd4 {[%emt 0:05:41]} Nd5 {[%emt 0:06:37]} 14. Bxe7 {[%emt 0:13:52]} Qxe7 {[%emt 0:00:38]} 15. Bxd5 {[%emt 0:01:08]} exd5 {[%emt 0:01:03]} 16. a3 {[%emt 0:18:38]} Nf6 {[%emt 0:03:07]} 17. b4 {[%emt 0:01:36]} Rac8 {[%emt 0:01:31]} 18. Qb2 {[%emt 0:04:26]} Qe5 {[%emt 0:02:42]} 19. Nf3 {[%emt 0:04:35]} Qh5 {[%emt 0:00:46]} 20. Qe2 {[%emt 0:03:21]} Qg6 {[%emt 0:00:37]} 21. Nd4 {[%emt 0:04:18]} Rc4 {[%emt 0:00:46]} 22. f3 {[%emt 0:06:44]} Rfc8 {[%emt 0:00:20]} 23. Qd2 {[%emt 0:02:16]} Qg5 {[%emt 0:00:35]} 24. Nce2 {[%emt 0:01:18]} Rxc1 {[%emt 0:00:44]} 25. Rxc1 {[%emt 0:00:03]} Re8 {[%emt 0:00:20]} 26. Rc3 {[%emt 0:00:56]} h6 {[%emt 0:00:44]} 27. Nf4 {[%emt 0:01:45]} Qe5 {[%emt 0:00:19]} 28. Qc1 {[%emt 0:01:33]} Re7 {[%emt 0:00:34]} 29. b5 {[%emt 0:00:34]} Ne8 {[%emt 0:00:24]} 30. Nc6 {[%emt 0:00:17]} Bxc6 {[%emt 0:00:09]} 31. bxc6 {[%emt 0:00:02]} Rc7 {[%emt 0:00:13]} 32. Qd2 {[%emt 0:00:50]} Nf6 {[%emt 0:00:14]} 33. Nd3 {[%emt 0:01:00]} Qe8 {[%emt 0:00:20]} 34. Nb4 {[%emt 0:00:18]} Qe6 {[%emt 0:00:30]} 35. Qc1 {[%emt 0:00:55]} Qc8 {[%emt 0:00:22]} 36. Nd3 {[%emt 0:00:42]} Qe6 {[%emt 0:00:27]} 37. Nf4 {[%emt 0:00:26]} Qe8 {[%emt 0:00:51]} 38. Ne2 {[%emt 0:00:25]} a6 {[%emt 0:00:58]} 39. Nd4 {[%emt 0:00:12]} Qc8 {[%emt 0:00:21]} 40. Qb2 {[%emt 0:00:49]} Qb8 {[%emt 0:01:07]} 41. a4 {[%emt 0:30:26]} Ne8 {[%emt 0:08:56]} 42. Rb3 {[%emt 0:00:00]} Nd6 {[%emt 0:00:22]} 43. Rxb6 {[%emt 0:00:00]} Qe8 {[%emt 0:00:42]} 44. Rb8 {[%emt 0:00:00]} Nc8 {[%emt 0:00:25]} 45. Kf2 {[%emt 0:00:00]} Qe7 {[%emt 0:02:19]} 46. g3 {[%emt 0:00:00]} Kh7 {[%emt 0:02:05]} 47. Rb7 {[%emt 0:00:00]} Nd6 {[%emt 0:00:27]} 48. Qb1+ {[%emt 0:00:00]} g6 {[%emt 0:00:23]} 49. Rb3 {[%emt 0:00:00]} Nc4 {[%emt 0:01:10]} 50. Qc2 {[%emt 0:00:00]} Na5 {[%emt 0:01:11]} 51. Rc3 {[%emt 0:00:00]} Nc4 {[%emt 0:00:34]} 52. h4 {[%emt 0:00:00]} f5 {[%emt 0:02:01]} 53. h5 {[%emt 0:00:12]} Qf6 {[%emt 0:02:12]} 54. hxg6+ {[%emt 0:00:45]} Kxg6 {[%emt 0:00:07]} 55. Kg2 {[%emt 0:01:02]} Nxe3+ {[%emt 0:02:27]} 56. Rxe3 {[%emt 0:00:20]} Qxd4 {[%emt 0:00:16]} 57. Re6+ {[%emt 0:00:33]} Kg7 {[%emt 0:02:25]} 58. Qxf5 {[%emt 0:01:21]} Qd2+ {[%emt 0:04:32]} 59. Kh3 {[%emt 0:00:29]} Qg5 {[%emt 0:00:21]} 60. Qxg5+ {[%emt 0:01:14]} hxg5 {[%emt 0:00:05]} 61. Rd6 {[%emt 0:00:39]} Kf7 {[%emt 0:00:38]} 62. Rxd5 {[%emt 0:00:34]} Rxc6 {[%emt 0:00:08]} 63. Rxg5 {[%emt 0:00:08]} Kf6 {[%emt 0:00:52]} 64. f4 {[%emt 0:00:49]} Re6 {[%emt 0:00:27]} 65. Kg4 {[%emt 0:01:26]} Re4 {[%emt 0:00:28]} 66. a5 {[%emt 0:00:40]} Re3 {[%emt 0:00:40]} 67. Rh5 {[%emt 0:00:47]} Kg6 {[%emt 0:00:47]} 68. f5+ {[%emt 0:00:21]} Kg7 {[%emt 0:00:31]} 69. Rg5+ {[%emt 0:00:22]} Kf6 {[%emt 0:00:45]} 70. Rg6+ {[%emt 0:00:20]} 1-0

[Event "Czech Youth U14 Girls 2024"]
[Site "Kouty nad Desnou"]
[Date "2024.03.14"]
[Round "7.6"]
[White "Kubatova, Ema"]
[Black "Bouchalova, Kveta"]
[Result "1/2-1/2"]
[ECO "D80"]
[WhiteElo "1580"]
[BlackElo "1627"]
[Annotator "NA RC"]
[PlyCount "60"]
[EventDate "2024.03.10"]
[EventType "swiss"]
[EventCountry "CZE"]
[SourceTitle "playchess.com"]
[Source "ChessBase"]
[SourceQuality "1"]
[TimeControl "40/5400+30:1800+30"]

1. d4 {[%emt 0:00:02]} Nf6 {[%emt 0:00:04]} 2. c4 {[%emt 0:00:12]} g6 {[%emt 0:00:06]} 3. Nc3 {[%emt 0:00:24]} d5 {[%emt 0:00:05]} 4. Bg5 {[%emt 0:03:19]} Ne4 {[%emt 0:00:23]} 5. Nxe4 {[%emt 0:03:30]} dxe4 {[%emt 0:00:21]} 6. e3 {[%emt 0:03:08]} c5 {[%emt 0:07:55]} 7. d5 {[%emt 0:09:44]} Bg7 {[%emt 0:03:22]} 8. Qd2 {[%emt 0:01:53]} O-O {[%emt 0:04:23]} 9. Ne2 {[%emt 0:08:47]} Nd7 {[%emt 0:21:46]} 10. Nc3 {[%emt 0:04:45]} f5 {[%emt 0:04:58]} 11. d6 {[%emt 0:11:33]} Bf6 {[%emt 0:08:36]} 12. dxe7 {[%emt 0:10:42]} Bxe7 {[%emt 0:09:48]} 13. Bxe7 {[%emt 0:01:50]} Qxe7 {[%emt 0:00:30]} 14. Nd5 {[%emt 0:00:13]} Qf7 {[%emt 0:07:58]} 15. Be2 {[%emt 0:08:28]} Ne5 {[%emt 0:03:17]} 16. b3 {[%emt 0:04:37]} Be6 {[%emt 0:02:43]} 17. Qc3 {[%emt 0:06:13]} Nc6 {[%emt 0:03:49]} 18. O-O {[%emt 0:04:53]} Rad8 {[%emt 0:03:16]} 19. Rad1 {[%emt 0:01:50]} b6 {[%emt 0:02:49]} 20. Nf4 {[%emt 0:01:43]} Qe7 {[%emt 0:04:49]} 21. Nxe6 {[%emt 0:06:13]} Qxe6 {[%emt 0:00:06]} 22. a3 {[%emt 0:00:33]} Kf7 {[%emt 0:03:09]} 23. Rd5 {[%emt 0:01:25]} Qf6 {[%emt 0:00:41]} 24. Qxf6+ {[%emt 0:01:21]} Kxf6 {[%emt 0:00:04]} 25. Rfd1 {[%emt 0:00:08]} Ke7 {[%emt 0:02:17]} 26. Kf1 {[%emt 0:01:31]} Rf6 {[%emt 0:00:39]} 27. Ke1 {[%emt 0:00:53]} Rfd6 {[%emt 0:00:23]} 28. Rxd6 {[%emt 0:00:55]} Rxd6 {[%emt 0:00:06]} 29. Rxd6 {[%emt 0:00:09]} Kxd6 {[%emt 0:00:02]} 30. Kd2 {[%emt 0:00:14]} a6 {[%emt 0:03:35]} 1/2-1/2

[Event "Czech Youth U14 Girls 2024"]
[Site "Kouty nad Desnou"]
[Date "2024.03.14"]
[Round "7.7"]
[White "Kavanova, Valentyna"]
[Black "Hladka, Leontyna"]
[Result "0-1"]
[ECO "B52"]
[WhiteElo "1539"]
[BlackElo "1683"]
[Annotator "NA RC"]
[PlyCount "80"]
[EventDate "2024.03.10"]
[EventType "swiss"]
[EventCountry "CZE"]
[SourceTitle "playchess.com"]
[Source "ChessBase"]
[SourceQuality "1"]
[TimeControl "40/5400+30:1800+30"]

1. e4 {[%emt 0:00:03]} c5 {[%emt 0:00:05]} 2. Nf3 {[%emt 0:00:09]} d6 {[%emt 0:00:07]} 3. Bb5+ {[%emt 0:00:07]} Bd7 {[%emt 0:00:06]} 4. Bxd7+ {[%emt 0:00:15]} Qxd7 {[%emt 0:00:05]} 5. c4 {[%emt 0:00:10]} Nc6 {[%emt 0:00:23]} 6. d4 {[%emt 0:00:37]} cxd4 {[%emt 0:00:19]} 7. Nxd4 {[%emt 0:00:04]} Nf6 {[%emt 0:01:01]} 8. Nc3 {[%emt 0:00:33]} e6 {[%emt 0:01:20]} 9. f3 {[%emt 0:02:40]} Be7 {[%emt 0:02:13]} 10. O-O {[%emt 0:00:27]} O-O {[%emt 0:00:19]} 11. Be3 {[%emt 0:00:21]} Rac8 {[%emt 0:01:20]} 12. b3 {[%emt 0:01:19]} a6 {[%emt 0:02:01]} 13. a4 {[%emt 0:00:08]} Rfd8 {[%emt 0:02:44]} 14. Qd2 {[%emt 0:00:27]} d5 {[%emt 0:01:36]} 15. Rfd1 {[%emt 0:01:47]} dxc4 {[%emt 0:09:58]} 16. bxc4 {[%emt 0:07:01]} Nxd4 {[%emt 0:04:56]} 17. Qxd4 {[%emt 0:02:26]} Qxd4 {[%emt 0:02:58]} 18. Rxd4 {[%emt 0:00:12]} Rxd4 {[%emt 0:01:49]} 19. Bxd4 {[%emt 0:00:06]} Rxc4 {[%emt 0:00:47]} 20. Be5 {[%emt 0:02:00]} Nd7 {[%emt 0:03:05]} 21. Bf4 {[%emt 0:17:27]} Rxc3 {[%emt 0:00:53]} 22. Rb1 {[%emt 0:00:43]} Nc5 {[%emt 0:03:08]} 23. a5 {[%emt 0:02:03]} Kf8 {[%emt 0:03:45]} 24. Kf2 {[%emt 0:03:26]} Rb3 {[%emt 0:01:53]} 25. Rd1 {[%emt 0:03:49]} Nd3+ {[%emt 0:00:32]} 26. Kg3 {[%emt 0:00:36]} Nxf4 {[%emt 0:00:19]} 27. Kxf4 {[%emt 0:00:07]} Ke8 {[%emt 0:01:09]} 28. h3 {[%emt 0:02:50]} Ra3 {[%emt 0:02:03]} 29. Rb1 {[%emt 0:00:50]} Rxa5 {[%emt 0:00:55]} 30. Rxb7 {[%emt 0:00:10]} Ra2 {[%emt 0:00:56]} 31. g4 {[%emt 0:00:15]} a5 {[%emt 0:03:09]} 32. Ra7 {[%emt 0:02:34]} a4 {[%emt 0:00:43]} 33. Ra8+ {[%emt 0:00:44]} Bd8 {[%emt 0:01:29]} 34. h4 {[%emt 0:01:36]} a3 {[%emt 0:00:19]} 35. h5 {[%emt 0:00:35]} Ra1 {[%emt 0:02:57]} 36. e5 {[%emt 0:01:27]} Kd7 {[%emt 0:03:17]} 37. Ra7+ {[%emt 0:00:14]} Bc7 {[%emt 0:00:33]} 38. Kg5 {[%emt 0:03:35]} a2 {[%emt 0:00:36]} 39. h6 {[%emt 0:03:51]} gxh6+ {[%emt 0:01:18]} 40. Kf4 {[%emt 0:00:42]} Kc6 {[%emt 0:00:30]} 0-1

[Event "Czech Youth U14 Girls 2024"]
[Site "Kouty nad Desnou"]
[Date "2024.03.14"]
[Round "7.8"]
[White "Mojzisova, Barbora"]
[Black "Martinkovicova, Nela"]
[Result "1/2-1/2"]
[ECO "C42"]
[WhiteElo "1623"]
[BlackElo "1476"]
[Annotator "NA RC"]
[PlyCount "83"]
[EventDate "2024.03.10"]
[EventType "swiss"]
[EventCountry "CZE"]
[SourceTitle "playchess.com"]
[Source "ChessBase"]
[SourceQuality "1"]
[TimeControl "40/5400+30:1800+30"]

1. e4 {[%emt 0:00:02]} e5 {[%emt 0:00:14]} 2. Nf3 Nf6 {[%emt 0:00:14]} 3. Nc3 {[%emt 0:00:24]} Bb4 4. Bc4 O-O {[%emt 0:02:37]} 5. d3 {[%emt 0:06:21]} d5 {[%emt 0:07:27]} 6. exd5 {[%emt 0:03:39]} Nxd5 7. Bd2 {[%emt 0:02:16]} Nxc3 {[%emt 0:02:18]} 8. bxc3 Bd6 {[%emt 0:03:26]} 9. O-O {[%emt 0:01:54]} Bg4 {[%emt 0:03:53]} 10. h3 {[%emt 0:04:16]} Bh5 {[%emt 0:04:18]} 11. Rb1 {[%emt 0:03:33]} b6 {[%emt 0:03:48]} 12. Re1 {[%emt 0:02:02]} Nd7 {[%emt 0:01:16]} 13. Bb3 {[%emt 0:04:31]} Re8 {[%emt 0:04:46]} 14. g4 {[%emt 0:05:29]} Bg6 {[%emt 0:01:05]} 15. Bg5 {[%emt 0:01:56]} Qc8 {[%emt 0:01:38]} 16. Nh4 {[%emt 0:03:31]} Nc5 {[%emt 0:04:43]} 17. Nxg6 {[%emt 0:05:05]} hxg6 {[%emt 0:00:47]} 18. Qf3 {[%emt 0:02:28]} Nxb3 {[%emt 0:02:22]} 19. cxb3 {[%emt 0:01:12]} f6 {[%emt 0:01:03]} 20. Bh4 {[%emt 0:06:18]} Bc5 {[%emt 0:02:52]} 21. b4 {[%emt 0:01:27]} Bd6 {[%emt 0:00:35]} 22. Qd5+ {[%emt 0:01:32]} Qe6 {[%emt 0:01:43]} 23. Qxe6+ {[%emt 0:02:13]} Rxe6 {[%emt 0:00:11]} 24. d4 {[%emt 0:00:51]} Rae8 {[%emt 0:00:40]} 25. d5 {[%emt 0:01:03]} R6e7 {[%emt 0:00:17]} 26. b5 {[%emt 0:02:43]} e4 {[%emt 0:00:48]} 27. Bg3 {[%emt 0:02:49]} e3 {[%emt 0:01:34]} 28. Bxd6 {[%emt 0:03:16]} exf2+ {[%emt 0:01:20]} 29. Kxf2 {[%emt 0:00:19]} Rxe1 {[%emt 0:00:31]} 30. Rxe1 {[%emt 0:00:25]} Rxe1 {[%emt 0:00:08]} 31. Kxe1 {[%emt 0:00:20]} cxd6 {[%emt 0:00:43]} 32. Ke2 {[%emt 0:00:13]} Kf7 {[%emt 0:00:17]} 33. Ke3 {[%emt 0:01:11]} g5 {[%emt 0:01:06]} 34. Ke4 {[%emt 0:02:22]} g6 {[%emt 0:00:11]} 35. a4 {[%emt 0:01:41]} Ke7 {[%emt 0:00:21]} 36. c4 {[%emt 0:00:38]} Kd7 {[%emt 0:00:17]} 37. Kf3 {[%emt 0:04:25]} Ke7 {[%emt 0:00:42]} 38. Ke4 {[%emt 0:00:36]} Kd7 {[%emt 0:00:34]} 39. Kf3 {[%emt 0:00:49]} Ke7 {[%emt 0:00:19]} 40. Kg3 {[%emt 0:01:14]} Kf7 {[%emt 0:00:33]} 41. Kf3 {[%emt 0:30:58]} Ke7 {[%emt 0:30:22]} 42. Ke4 {[%emt 0:01:51]} 1/2-1/2